Cogmind - Beta 16.1 @@@ ROGUE MODE // 2026.04.04 @ 16:17:47 Player: Rocket Result: Self-destructed Performance ------------- Evolutions (6) 3000 Regions Visited (17) 3400 Robots Destroyed (206) 1030 Value Destroyed (8110) 8110 Prototype IDs (8) 160 Alien Tech Used (0) 0 Bonus (502) 502 TOTAL SCORE: 16202 Bonus ------- High Alert Combat Kills 1062 Follower Combat Kills 1720 Met Imprinter 300 Was Imprinted 300 Built Enhanced Grunts 300 Met R17 at Cetus 500 Friendly Fire -3680 Cogmind --------- Core Integrity 126/1150 Matter 300/300 Energy 47/100 System Corruption 17% Temperature Cool (0) Movement Core (50) Location -4/Upper Caves Parts ------- > --- POWER (2) -------- (None) > --- PROPULSION (7) --- (None) > --- UTILITY (6) ------ Improved Targeting Computer Advanced Targeting Computer Improved System Guard > --- WEAPON (4) ------- (None) > --- INVENTORY (5) ---- Improved Remote Datajack Peak State ------------ > --- POWER ------------ Micro Antimatter Reactor Quantum Reactor > --- PROPULSION ------- Centrium Heavy Treads Advanced VSS Leg > --- UTILITY ---------- Advanced Cooling System Huge Storage Unit Advanced Sensor Array Advanced Signal Interpreter Improved Transmission Jammer Centrium Medium Armor Plating > --- WEAPON ----------- Beamcaster Advanced Variable Charge Gun High-powered Shotgun Heavy Machine Gun > --- INVENTORY -------- Light Angular Momentum Engine Compact Particle Reactor Energy Well Matter Compressor Improved Sensor Array Advanced Targeting Computer Improved Particle Charger Particle Accelerator Improved Medium Armor Plating Centrium Medium Armor Plating Z-Drone Bay Heavy Laser Plasma Rifle Beamcaster Wave Gun Variable Charge Gun Variable Charge Gun Advanced Variable Charge Gun Advanced Variable Charge Gun Advanced Variable Charge Gun Heavy Phase Cannon Improved Proton Missile Launcher Long-range Missile Launcher Remote Datajack Great Axe [Rating: 109] Favorites ----------- Power Deuterium Engine Engine Deuterium Engine Power Core Fission Core Reactor Quantum Reactor Propulsion Light Treads Treads Light Treads Leg Carbon-fiber Leg Wheel Wheel Hover Unit Improved Antigrav System Flight Unit VTOL Module Utility High-capacity Storage Unit Device EM Disruption Field Storage High-capacity Storage Unit Processor Advanced Targeting Computer Hackware Hacking Suite Protection Heavy Armor Plating Weapon Autogun Energy Gun Beamcaster Energy Cannon Proton Cannon Ballistic Gun Autogun Launcher Rocket Array Special Weapon Remote Datajack Impact Weapon Heavy Mace Slashing Weapon Ripper Piercing Weapon Heavy Pick Build | -11 -10 -10 -10 -9 -8 -7 -7 -7 -7 -6 -6 -6 -6 -5 -4 -4 -4 ------- Run | Yrd Mat Min Exi Min Mat Fac Low Low Zio Pro Fac Ext Cet Fac Fac Upp Upp Slots Evolved 12 | . . . . . 4 2 . . . . 2 . . 2 2 . . Power 1 | . . . . . . . . . . . . . . 1 . . . Propulsion 5 | . . . . . 1 1 . . . . 1 . . . 2 . . Utility 4 | . . . . . 2 . . . . . 1 . . 1 . . . Weapon 2 | . . . . . 1 1 . . . . . . . . . . . Parts Attached 200 | 8 . 3 1 7 12 20 6 11 8 6 22 18 20 7 39 8 4 Power 18 | 1 . 1 . 1 1 1 . 1 1 . 1 1 3 2 2 2 . Engine 10 | 1 . 1 . 1 1 1 . 1 . . 1 . 1 2 . . . Core 4 | . . . . . . . . . 1 . . 1 . . 1 1 . Reactor 4 | . . . . . . . . . . . . . 2 . 1 1 . Propulsion 52 | 2 . . . 3 1 4 2 1 1 3 7 10 3 1 12 1 1 Treads 17 | 2 . . . 3 1 2 1 1 1 2 3 . 1 . . . . Leg 26 | . . . . . . 2 1 . . 1 4 8 2 1 7 . . Wheel 6 | . . . . . . . . . . . . 1 . . 4 . 1 Hover 2 | . . . . . . . . . . . . 1 . . 1 . . Flight 1 | . . . . . . . . . . . . . . . . 1 . Utility 59 | 2 . . 1 2 3 6 3 2 . 2 6 5 7 4 13 2 1 Device 24 | 1 . . . . . 1 1 . . . 4 2 3 3 7 1 1 Storage 5 | 1 . . 1 . 1 1 . . . . . 1 . . . . . Processor 11 | . . . . . 1 . 1 . . 1 1 . . . 6 1 . Hackware 1 | . . . . . . . . 1 . . . . . . . . . Protection 18 | . . . . 2 1 4 1 1 . 1 1 2 4 1 . . . Artifact . | . . . . . . . . . . . . . . . . . . Weapon 71 | 3 . 2 . 1 7 9 1 7 6 1 8 2 7 . 12 3 2 Energy Gun 28 | 2 . . . . . . . 6 2 . 1 . 4 . 10 2 1 Energy Cannon 1 | . . . . . . . . . . . 1 . . . . . . Ballistic Gun 27 | 1 . 2 . 1 6 4 1 1 2 1 4 . 2 . 1 1 . Ballistic Cannon . | . . . . . . . . . . . . . . . . . . Launcher 6 | . . . . . 1 3 . . . . . . 1 . 1 . . Special Weapon 1 | . . . . . . . . . . . . 1 . . . . . Impact Weapon 1 | . . . . . . . . . . . 1 . . . . . . Slashing Weapon 5 | . . . . . . 2 . . 2 . . 1 . . . . . Piercing Weapon 2 | . . . . . . . . . . . 1 . . . . . 1 Special Melee Weapon . | . . . . . . . . . . . . . . . . . . Unidentified Prototypes 8 | . . . . . . 1 . . . . . . 5 1 1 . . Corrupted Parts 14 | . . . . . . . . . . 3 2 . 6 . 1 1 1 System Corruption 58 | . . . . . . . . . . 12 5 . 27 . 10 1 3 Parts Lost 109 | . . . . 5 . 2 3 15 . 4 13 3 6 12 28 12 6 Power 11 | . . . . 1 . . . 1 . . 1 . 2 1 3 2 . Propulsion 34 | . . . . 2 . . 3 2 . . 4 2 1 7 8 4 1 Utility 26 | . . . . 1 . 2 . 3 . 2 3 . 2 2 7 1 3 Weapon 38 | . . . . 1 . . . 9 . 2 5 1 1 2 10 5 2 Highest Loss Streak 10 | . . . . 5 . 1 2 10 . 3 5 3 3 6 8 8 6 To Critical Strikes 3 | . . . . . . . . . . 1 . . 2 . . . . Average Backups 14 | 1 2 6 8 9 14 19 18 14 13 16 17 18 17 16 19 3 3 Power 2 | . 1 1 2 1 3 2 1 . 1 2 4 5 3 1 1 . . Propulsion . | . . . . . . . . . . . . 2 2 1 . . . Utility 4 | . 1 1 2 4 3 4 5 5 4 4 5 5 4 4 6 1 . Weapon 6 | . . 2 4 3 7 10 10 6 6 9 6 3 5 8 10 1 1 Tool/Special . | . . . . . . . . . . . . . . . . . . Unused Backups 20 | . . 1 . . 1 5 1 . . . 1 2 1 . 5 2 1 Power 2 | . . . . . . . . . . . . 1 1 . . . . Propulsion 1 | . . . . . . . 1 . . . . . . . . . . Utility 10 | . . 1 . . . 3 . . . . 1 1 . . 2 2 . Weapon 4 | . . . . . 1 . . . . . . . . . 3 . . Tool/Special 3 | . . . . . . 2 . . . . . . . . . . 1 Average Slot Usage (%) 84 | . 100 100 100 96 99 95 93 78 76 83 92 91 85 84 70 36 34 Engine 5 | . 14 14 14 14 9 7 7 6 6 . 5 1 3 4 2 . . Core 1 | . . . . . . . . . . 7 . 4 . . . . . Treads 13 | . 28 28 28 26 26 27 24 8 7 18 23 1 . 1 3 . . Leg 8 | . . . . . . 1 2 7 7 7 4 29 28 19 4 1 . Device 7 | . 14 14 14 7 . 1 11 4 . 4 14 13 8 12 13 3 2 Storage 6 | . 14 14 14 14 9 7 7 7 7 7 6 6 6 5 4 . . Processor 2 | . . . . . 7 5 . 4 . . 5 . . . 6 17 20 Hackware 1 | . . . . . . . . 2 6 . . . . . . . . Protection 6 | . . . . 5 19 11 7 5 7 6 4 5 7 8 3 . . Energy Gun 5 | . 14 1 . . . . . 9 8 2 7 6 6 9 11 6 4 Ballistic Gun 14 | . 14 26 28 28 26 27 29 15 . 17 12 15 11 10 4 . 1 Launcher 2 | . . . . . . 1 . 3 6 4 2 . 5 . . . . Slashing Weapon 3 | . . . . . . . . . 13 1 . . . . 3 1 . Peak Build Rating 109 | 7 7 8 8 9 22 36 38 40 53 53 73 67 95 103 109 75 41 Average Rating 45 | 5 7 7 8 8 20 31 33 32 42 49 62 61 61 90 91 29 25 On Entrance 37 | . 7 7 8 8 9 22 34 33 40 49 52 47 66 84 103 75 24 Avg Prop Armor Cover (%) 3 | . . . . . . 3 3 2 2 3 4 6 . 6 8 . . Naked Turns . | . . . . . . . . . . . . . . . . . . Heaviest Build 154 | 13 13 15 28 32 65 80 80 82 88 86 81 128 142 154 154 31 13 Greatest Support 146 | 40 40 40 40 40 60 82 82 42 56 116 146 80 80 80 95 95 19 Greatest Overweight (x) 21 | . . . . 8 1 1 3 4 2 1 21 1 2 3 6 10 2 Average Overweight (x) . | . . . . . . . . 1 1 . . 1 1 1 1 . . Largest Inventory Capacity 25 | 8 8 8 15 15 20 25 20 20 20 20 20 25 25 25 25 5 5 Average Capacity 18 | 7 8 8 9 15 19 20 20 20 20 20 20 20 25 25 22 5 5 Most Carried 25 | 2 2 8 9 12 20 20 20 19 18 18 20 22 22 20 25 5 5 Average Carried 15 | 1 2 6 8 9 14 19 19 14 13 17 17 18 17 17 19 3 3 Final Capacity 25 | 8 8 8 15 15 20 20 20 20 20 20 20 25 25 25 5 5 5 Final Carried 22 | 2 2 8 9 12 20 20 19 11 17 17 16 22 20 19 2 5 1 Class Distribution -------------------- 36% | Scavenger-Tank 17% | Mutant 14% | Tank 9% | Scavenger-Mutant 8% | Scavenger-Gunner 6% | Gunner Dominant Class ---------------- Mutant | -10/Materials Scavenger-Mutant | -10/Mines Scavenger-Mutant | -10/Exiles Scavenger-Mutant | -9/Mines Tank | -8/Materials Scavenger-Tank | -7/Factory Gunner | -7/Lower Caves Tank | -7/Lower Caves Mutant | -7/Zion Scavenger-Tank | -6/Proximity Caves Scavenger-Gunner | -6/Factory Scavenger-Tank | -6/Extension Scavenger-Tank | -6/Cetus Scavenger-Tank | -5/Factory Scavenger-Tank | -4/Factory Mutant | -4/Upper Caves Mutant | -4/Upper Caves Resources | -11 -10 -10 -10 -9 -8 -7 -7 -7 -7 -6 -6 -6 -6 -5 -4 -4 -4 ----------- Run | Yrd Mat Min Exi Min Mat Fac Low Low Zio Pro Fac Ext Cet Fac Fac Upp Upp Matter Collected 8169 | 293 . 258 . 107 365 994 781 214 92 519 1234 1414 554 300 815 129 100 Remotely 1314 | . . . . . . . 601 208 . 154 . . . . 351 . . Salvage Created 7838 | 120 45 168 . 109 345 1537 504 168 . 200 1316 923 337 394 1336 336 . Parts 385 | 14 8 16 . 9 16 72 30 11 . 15 52 38 12 9 66 17 . Haulers Intercepted 1 | . . . . . . . . . . . 1 . . . . . . Recyclers Shooed 7 | 1 . 2 . . . 1 . . . . . 2 . . 1 . . Parts Field Recycled 3 | . . . . . . . . . . . . . . . 3 . . Retrieved Matter 29 | . . . . . . . . . . . . . . . 29 . . Parts Self-Destructed 59 | . . . . . . . 26 6 1 14 . . . . . 12 . Prevented 12 | . . . . . . . . . . 10 . . . . . 2 . Parts Restored . | . . . . . . . . . . . . . . . . . . Kills | -11 -10 -10 -10 -9 -8 -7 -7 -7 -7 -6 -6 -6 -6 -5 -4 -4 -4 ------- Run | Yrd Mat Min Exi Min Mat Fac Low Low Zio Pro Fac Ext Cet Fac Fac Upp Upp Combat Hostiles Destroyed 157 | . 3 5 . 2 7 31 18 5 . 6 24 15 2 8 23 8 . Melee 5 | . . . . . . . . . . . . . . . 4 1 . Guns 86 | . 3 5 . 2 5 18 14 1 . 3 8 11 . 3 6 7 . AOE 60 | . . . . . 2 13 4 4 . 3 15 4 . 4 11 . . Classes Destroyed 20 | 1 1 2 . 1 2 6 . 2 . 2 1 . . 1 1 . . Worker 12 | . . 1 . . . 5 . . . . 5 . . . 1 . . Builder 10 | . . . . . 2 1 . . . . 3 1 . . 3 . . Tunneler 9 | 7 . 1 . . . 1 . . . . . . . . . . . Hauler 1 | . . . . . . . . . . . 1 . . . . . . Recycler 7 | . . . . . . 4 . . . . 1 1 . . 1 . . Mechanic 1 | . . . . . . 1 . . . . . . . . . . . Drone 1 | . . . . . . . . . . 1 . . . . . . . Watcher 6 | . . . . . . 1 . . . . . 3 2 . . . . Swarmer 48 | . 3 3 . . . 7 14 3 . 4 7 2 . . . 5 . Cutter 2 | . . . . . . . . . . . . . . . 2 . . Grunt 66 | . . 2 . . 6 17 3 . . 1 10 11 . 5 8 3 . Brawler 3 | . . . . . . 2 1 . . . . . . . . . . Duelist 3 | . . . . . . 2 . . . . . . . . 1 . . Sentry 9 | . . . . 2 . 1 . . . . 2 1 . 2 1 . . Demolisher 1 | . . . . . . . . . . . . . . 1 . . . Hunter 8 | . . . . . 1 . . . . . 3 . . . 4 . . Programmer 12 | . . . . . . 2 . 1 . . 2 . . . 7 . . Behemoth 1 | . . . . . . . . 1 . . . . . . . . . Cetus Guard 2 | . . . . . . . . . . . . . 2 . . . . Samaritan 1 | . . . . . . . . 1 . . . . . . . . . Savage 1 | . . . . . . . . . . . . . 1 . . . . Guerrilla 1 | . . . . . . . . . . . . 1 . . . . . Mutant 1 | . . . . . . . . . . 1 . . . . . . . Best Kill Streak 9 | 3 3 3 . 2 4 9 4 3 . 3 6 3 3 5 9 4 . Combat Bots Only 9 | . 3 3 . 2 3 5 4 3 . 3 6 3 2 5 9 4 . Max Kills in Single Turn 6 | 2 2 1 . 1 2 6 4 2 . 2 3 2 1 4 3 1 . Gunslinging 1 | . 1 . . . . 1 1 . . . . . . . . . . Exploded 4 | . . . . . 2 4 4 2 . 2 3 2 . 4 3 . . Melee 1 | . . . . . . . . . . . . . . . 1 1 . Uniques/NPCs Destroyed 1 | . . . . . . . . . . . . . 1 . . . . A7 (-6/Cetus) Combat | -11 -10 -10 -10 -9 -8 -7 -7 -7 -7 -6 -6 -6 -6 -5 -4 -4 -4 -------- Run | Yrd Mat Min Exi Min Mat Fac Low Low Zio Pro Fac Ext Cet Fac Fac Upp Upp Hostile Shots Fired 1183 | . 4 44 . 38 20 97 100 56 . 76 168 41 62 74 267 98 38 Missed 335 | . . 11 . 5 5 40 21 13 . 21 52 16 20 17 60 37 17 Hits 848 | . 4 33 . 33 15 57 79 43 . 55 116 25 42 57 207 61 21 Melee 15 | . . . . . . . . . . . 1 . . . 14 . . Projectile 833 | . 4 33 . 33 15 57 79 43 . 55 115 25 42 57 193 61 21 AOE 15 | . . . . . . . . . . . . . . 13 2 . . Critical Strikes 38 | . . . . . 1 1 3 3 . 4 1 . 6 2 12 5 . Part Disruptions 1 | . . . . . . . . . . 1 . . . . . . . Damage Taken 17041 | . 33 331 . 482 224 887 1172 1266 . 1045 2401 433 1082 1863 4228 1160 434 Core 2299 | . . 80 . 102 33 49 75 311 . 103 339 21 41 121 626 238 160 Absorbed by Shields 135 | . . . . . . . . . . . . . 135 . . . . Reduced by Siege Mode 25 | . . . . . . . . . . . . . . . 25 . . Redirected to Shielding 50 | . . . . . 21 29 . . . . . . . . . . . Regen/Repaired (Parts) 626 | . . . . . . . . . 626 . . . . . . . . Core Remaining (%) 63 | 100 . . . 27 94 . . . . 23 . . 52 87 . . . Volleys Fired 426 | 14 5 29 . 12 19 52 34 13 . 31 53 46 17 20 59 17 5 Largest 4 | 2 2 2 . 2 3 4 4 4 . 3 4 4 3 4 4 3 2 Hottest 480 | 70 70 70 . 40 71 114 92 110 . 141 196 193 138 480 272 225 88 Shots Fired 1084 | 28 10 58 . 24 53 177 133 37 . 82 121 120 20 44 129 38 10 Gun 1004 | 28 10 58 . 24 51 170 132 34 . 80 105 100 4 43 118 37 10 Cannon 8 | . . . . . . . . . . . 4 4 . . . . . Launcher 63 | . . . . . 2 7 1 3 . 2 12 7 16 1 11 1 . Special 9 | . . . . . . . . . . . . 9 . . . . . Kinetic 718 | 14 5 42 . 24 51 170 132 32 . 65 62 70 3 17 26 . 5 Thermal 223 | 14 5 16 . . . . . . . 15 5 24 1 26 80 37 . Explosive 48 | . . . . . 2 7 1 3 . 2 12 7 7 1 6 . . Electromagnetic 86 | . . . . . . . . 2 . . 42 10 9 . 17 1 5 Robot Hit Streak 19 | 10 16 6 . 12 13 12 6 10 . 6 15 7 6 10 19 5 13 Robot Miss Streak 12 | 3 2 3 . 2 3 4 9 4 . 12 3 4 4 5 5 5 . Penetration Max 2 | . . . . . . . . . . . 1 2 . . . . . Secondary Targets 17 | . 1 . . 1 2 3 4 . . . 1 3 . . 1 1 . Max Gunslinging Chain 1 | . 1 . . 1 1 1 1 . . . 1 1 . . 1 1 . Shots Hit Robots 666 | 14 7 29 . 20 35 106 70 26 . 39 71 56 25 29 103 25 11 Core Hits 492 | 8 4 14 . 8 25 93 31 17 . 13 83 47 57 26 52 13 1 Critical Kills 7 | . . . . . . . . . . 1 3 2 . . 1 . . Critical Parts Destroyed 12 | . . . . 1 . 3 . . . . 7 1 . . . . . Critical Strikes 38 | . 1 2 . 1 . 3 . . . 2 11 6 1 . 10 1 . Burn 12 | . 1 2 . . . . . . . 1 . 3 . . 4 1 . Destroy 17 | . . . . 1 . 3 . . . 1 8 3 . . 1 . . Corrupt 2 | . . . . . . . . . . . 1 . . . 1 . . Smash 2 | . . . . . . . . . . . 2 . . . . . . Sever 5 | . . . . . . . . . . . . . 1 . 4 . . Melee Attacks 84 | . . . . . . 3 . . . . 23 4 17 . 31 3 3 Impact 24 | . . . . . . . . . . . 20 4 . . . . . Slashing 54 | . . . . . . 3 . . . . . . 17 . 31 3 . Piercing 6 | . . . . . . . . . . . 3 . . . . . 3 Sneak Attacks 22 | . . . . . . . . . . . 3 1 17 . 1 . . Combat Hostiles . | . . . . . . . . . . . . . . . . . . Follow-up Attacks . | . . . . . . . . . . . . . . . . . . Damage Inflicted 22601 | 202 90 338 . 169 791 3592 1345 870 . 1119 3287 1799 2225 1225 4703 683 163 Guns 10913 | 198 90 336 . 169 559 1630 1106 389 . 935 1149 969 46 836 1814 563 124 Cannons 77 | . . . . . . . . . . . . 77 . . . . . Explosions 9308 | . . . . . 232 1962 239 481 . 184 1871 620 1309 389 1971 50 . Melee 2297 | . . . . . . . . . . . 267 133 870 . 918 70 39 Ramming 6 | 4 . 2 . . . . . . . . . . . . . . . Kinetic 6957 | 121 51 198 . 169 559 1630 1106 374 . 744 640 656 24 225 361 . 99 Thermal 4396 | 77 39 138 . . . 441 . . . 191 244 312 22 611 1758 563 . Explosive 7546 | . . . . . 232 1521 239 481 . 184 1669 579 956 389 1296 . . Electromagnetic 1399 | . . . . . . . . 15 . . 467 119 353 . 370 50 25 Impact 400 | . . . . . . . . . . . 267 133 . . . . . Slashing 1858 | . . . . . . . . . . . . . 870 . 918 70 . Piercing 39 | . . . . . . . . . . . . . . . . . 39 Highest Corruption 38 | . . . . . . . . 6 6 14 11 11 38 . 8 9 17 Average Corruption 8 | . . . . . . . . 3 6 7 4 11 14 . 4 8 10 Corruption Purged . | . . . . . . . . . . . . . . . . . . Corruption Blocked . | . . . . . . . . . . . . . . . . . . Effects 187 | . . . . . . . . 18 4 15 12 64 36 . 19 11 8 Message Errors 46 | . . . . . . . . 2 1 6 4 13 10 . 1 4 5 Matter Fused 44 | . . . . . . . . 3 1 3 2 13 10 . 7 4 1 Heat Flow Errors 17 | . . . . . . . . 3 1 2 1 4 5 . 1 . . Energy Discharges 23 | . . . . . . . . 4 . 1 1 11 4 . 1 1 . Parts Rejected 3 | . . . . . . . . . . 1 . . 1 . . . 1 Parts Fused 2 | . . . . . . . . . . . . . . . 2 . . Data Loss (minor) 25 | . . . . . . . . 5 1 1 . 11 1 . 4 2 . Data Loss (major) 11 | . . . . . . . . . . . . 7 3 . 1 . . Misfires 6 | . . . . . . . . 1 . . 2 . 1 . 2 . . Alerts 2 | . . . . . . . . . . . 1 . . . . . 1 Misdirections 3 | . . . . . . . . . . . . 3 . . . . . Weapon Failures 5 | . . . . . . . . . . 1 1 2 1 . . . . Overload Shots 2 | . . . . . . . . . . . . . . 2 . . . Overflow Damage 591 | . . . . . . 89 19 9 . . 234 54 66 . 120 . . Projectiles . | . . . . . . . . . . . . . . . . . . Explosions 273 | . . . . . . 89 19 9 . . 71 . 7 . 78 . . Melee 318 | . . . . . . . . . . . 163 54 59 . 42 . . Knockbacks . | . . . . . . . . . . . . . . . . . . Impact . | . . . . . . . . . . . . . . . . . . Kinetic . | . . . . . . . . . . . . . . . . . . Secondary . | . . . . . . . . . . . . . . . . . . Self-Inflicted Damage 813 | . . . . . . 24 . 43 . 15 415 112 16 . 188 . . Shots 34 | . . . . . . 1 . 3 . 1 20 5 1 . 3 . . Rammed 3 | 2 . 1 . . . . . . . . . . . . . . . Targets Rammed 3 | 2 . 1 . . . . . . . . . . . . . . . Kicked . | . . . . . . . . . . . . . . . . . . Crushed . | . . . . . . . . . . . . . . . . . . Highest Temperature 571 | 27 45 159 . 25 104 259 334 571 258 397 113 176 189 330 489 282 32 Average Temperature 90 | 9 23 56 . 13 29 60 126 181 138 105 29 43 69 112 153 112 13 Received Heat Transfer 3343 | . . 93 . 153 90 285 216 758 . 156 516 135 58 256 271 356 . Effects 26 | . . . . . . . . 8 . 3 . . . 3 12 . . Shutdowns 6 | . . . . . . . . . . 1 . . . . 5 . . Energy Bleed 3 | . . . . . . . . 2 . . . . . . 1 . . Interference 12 | . . . . . . . . 2 . 2 . . . 3 5 . . Matter Decay 2 | . . . . . . . . 1 . . . . . . 1 . . Short Circuit 2 | . . . . . . . . 2 . . . . . . . . . Damage (core) 1 | . . . . . . . . 1 . . . . . . . . . Siege Activations 1 | . . . . . . . . . . . . . . . 1 . . Total Turns 34 | . . . . . . . . . . . . . . . 34 . . Longest Duration 34 | . . . . . . . . . . . . . . . 34 . . Martial Activations . | . . . . . . . . . . . . . . . . . . Shielding Activations . | . . . . . . . . . . . . . . . . . . Robots Disrupted 1 | . . . . . . . . . . . . 1 . . . . . Combat Hostiles 1 | . . . . . . . . . . . . 1 . . . . . Robots Corrupted 6 | . . . . . . . . . . . 2 2 2 . . . . Combat Hostiles 3 | . . . . . . . . . . . 1 . 2 . . . . Parts Fried 13 | . . . . . . . . . . . 6 3 3 . 1 . . Impact Corruptions 7 | . . . . . . . . . . . 4 3 . . . . . Robots Melted 3 | . . . . . . . . . . . . . . 1 2 . . Combat Hostiles 3 | . . . . . . . . . . . . . . 1 2 . . Parts Melted 12 | . . . . . . 1 . . . . 2 . . 2 3 4 . Heat Transferred 7232 | 222 185 555 . . . 350 . . . 370 274 716 37 703 2572 1248 . Parts Sabotaged 3 | . . . . . . . . . . . 3 . . . . . . Parts Stolen . | . . . . . . . . . . . . . . . . . . Parts Stripped . | . . . . . . . . . . . . . . . . . . Power Chain Reactions 8 | . . . . . . . . . . . 2 1 1 . 4 . . Alert | -11 -10 -10 -10 -9 -8 -7 -7 -7 -7 -6 -6 -6 -6 -5 -4 -4 -4 ------- Run | Yrd Mat Min Exi Min Mat Fac Low Low Zio Pro Fac Ext Cet Fac Fac Upp Upp Maximum Alert Level 4 | . . . . . . 2 . . . . 4 3 2 1 2 . . Low Security (%) 39 | 100 100 100 . 100 100 40 . . . . . . . 26 67 . . Level 1 8 | . . . . . . 8 . . . . . . 12 73 19 . . Level 2 38 | . . . . . . 51 . . . . 33 89 87 . 12 . . Level 3 8 | . . . . . . . . . . . 37 10 . . . . . Level 4 5 | . . . . . . . . . . . 29 . . . . . . Level 5 . | . . . . . . . . . . . . . . . . . . High Security . | . . . . . . . . . . . . . . . . . . Max Security . | . . . . . . . . . . . . . . . . . . Peak Influence 1334 | 10 68 92 . 30 173 601 . . . . 1334 880 568 383 476 . . Initial 750 | . . 22 . . . 63 . . . . 750 651 488 225 91 . . Average 386 | 1 28 18 . 4 54 318 . . . . 875 643 455 229 143 . . Influence Increases 8225 | 35 78 186 . 40 298 998 455 130 . 394 2317 1051 383 339 1071 390 60 Destroy 0b10 Robot/C 3980 | . 60 140 . 40 200 620 360 100 . 280 700 500 180 180 460 160 . Destroy 0b10 Robot/NC 260 | 35 . 10 . . 10 65 . . . 5 70 25 10 5 25 . . Destroy Leader 714 | . 10 30 . . 40 112 50 30 . 50 176 76 . 20 100 20 . Allied During Kill 597 | . . 6 . . 31 . . . . 59 222 89 100 90 . . . Successful Hack 59 | . 8 . . . . 16 . . . . . 35 . . . . . Disable Machine 585 | . . . . . . 120 . . . . 180 45 45 . 195 . . Destroy Structure 695 | . . . . . 17 50 . . . . 189 101 48 44 246 . . Advance Influence 750 | . . . . . . . . . . . 750 . . . . . . Partial Spotted 45 | . . . . . . 15 . . . . 15 15 . . . . . Lose Combat Pursuer 540 | . . . . . . . 45 . . . 15 165 . . 45 210 60 Influence Decreases 8035 | 35 20 244 . 40 157 573 674 477 . 392 988 1510 852 556 813 475 229 Entered New Map 1964 | . . 36 . . . 78 210 67 . . 2 680 384 178 95 165 69 Time Decay 4340 | 35 20 208 . 40 137 452 434 292 . 352 556 550 368 198 408 190 100 Search Patrol Dispatched 200 | . . . . . . . . . . . 200 . . . . . . Lost Part 1008 | . . . . . . 20 30 118 . 40 130 30 60 120 280 120 60 Lost Ally 523 | . . . . . 20 23 . . . . 100 250 40 60 30 . . Squads Dispatched 29 | . 1 . . . 2 7 . . . . 8 4 . . 7 . . Investigation 6 | . 1 . . . 2 . . . . . . 3 . . . . . Extermination 7 | . . . . . . 2 . . . . 2 . . . 3 . . Reinforcement 14 | . . . . . . 4 . . . . 5 1 . . 4 . . Assault 2 | . . . . . . 1 . . . . 1 . . . . . . Garrison . | . . . . . . . . . . . . . . . . . . Intercept . | . . . . . . . . . . . . . . . . . . Searches Triggered 2 | . . . . . . . . . . . 2 . . . . . . Construction Impeded 4 | . . . . . . 1 . . . . 2 1 . . . . . Haulers Reinforced 2 | . . . . . . . . . . . 1 . . . 1 . . Active Scanning Responses . | . . . . . . . . . . . . . . . . . . Cargo Convoy Interrupts 1 | . . . . . . . . . . . . . . . 1 . . Stealth | -11 -10 -10 -10 -9 -8 -7 -7 -7 -7 -6 -6 -6 -6 -5 -4 -4 -4 --------- Run | Yrd Mat Min Exi Min Mat Fac Low Low Zio Pro Fac Ext Cet Fac Fac Upp Upp Distress Signals 9 | . 1 . . . 1 . . . . . 2 . 2 . 3 . . Communications Jammed 39 | . . . . . . . . . . . . . . . 39 . . Distress Signals 39 | . . . . . . . . . . . . . . . 39 . . Times Spotted 261 | . 4 8 . 2 14 34 20 5 . 18 40 36 9 15 34 18 4 Peak Tracking Total 9 | . 3 3 . 2 4 4 4 3 . 3 5 5 5 5 5 9 4 Tactical Retreats 16 | . . . . . . . 1 . . . 1 6 . . 2 4 2 Traps | -11 -10 -10 -10 -9 -8 -7 -7 -7 -7 -6 -6 -6 -6 -5 -4 -4 -4 ------- Run | Yrd Mat Min Exi Min Mat Fac Low Low Zio Pro Fac Ext Cet Fac Fac Upp Upp Traps Triggered 8 | . 1 . . . . . . . . . . 5 . 1 1 . . Indirectly . | . . . . . . . . . . . . . . . . . . Trap Hack Attempts . | . . . . . . . . . . . . . . . . . . Triggered . | . . . . . . . . . . . . . . . . . . Disarmed . | . . . . . . . . . . . . . . . . . . Reprogrammed . | . . . . . . . . . . . . . . . . . . Reused . | . . . . . . . . . . . . . . . . . . Traps Extracted . | . . . . . . . . . . . . . . . . . . Installed . | . . . . . . . . . . . . . . . . . . Triggered . | . . . . . . . . . . . . . . . . . . Machines | -11 -10 -10 -10 -9 -8 -7 -7 -7 -7 -6 -6 -6 -6 -5 -4 -4 -4 ---------- Run | Yrd Mat Min Exi Min Mat Fac Low Low Zio Pro Fac Ext Cet Fac Fac Upp Upp Machines Disabled 39 | . . . . . . 8 . . . . 12 3 3 . 13 . . Max in Single Turn 7 | . . . . . . 7 . . . . 5 1 1 . 2 . . Machines Repaired . | . . . . . . . . . . . . . . . . . . Machines Dismantled . | . . . . . . . . . . . . . . . . . . Machines Sabotaged . | . . . . . . . . . . . . . . . . . . Overloaded Fab Kills . | . . . . . . . . . . . . . . . . . . Hacking | -11 -10 -10 -10 -9 -8 -7 -7 -7 -7 -6 -6 -6 -6 -5 -4 -4 -4 --------- Run | Yrd Mat Min Exi Min Mat Fac Low Low Zio Pro Fac Ext Cet Fac Fac Upp Upp Machines Accessed 18 | . 1 . 1 . 2 4 1 . . . . 7 2 . . . . Terminals 16 | . 1 . . . 2 4 . . . . . 7 2 . . . . Fabricators . | . . . . . . . . . . . . . . . . . . Repair Stations . | . . . . . . . . . . . . . . . . . . Recycling Units . | . . . . . . . . . . . . . . . . . . Scanalyzers . | . . . . . . . . . . . . . . . . . . Garrison Access . | . . . . . . . . . . . . . . . . . . Total Hacks 54 | . 1 . 23 . 6 5 1 . . . . 12 6 . . . . Successful 34 | . 1 . 23 . . 2 1 . . . . 7 . . . . . Failed 20 | . . . . . 6 3 . . . . . 5 6 . . . . Catastrophic 9 | . . . . . 2 2 . . . . . 1 4 . . . . Database Lockouts . | . . . . . . . . . . . . . . . . . . Manual 61 | . 1 . . . 4 5 . . . . 14 20 1 10 6 . . Terminals 30 | . 1 . . . 6 5 . . . . . 12 6 . . . . Fabricators . | . . . . . . . . . . . . . . . . . . Repair Stations . | . . . . . . . . . . . . . . . . . . Recycling Units . | . . . . . . . . . . . . . . . . . . Scanalyzers . | . . . . . . . . . . . . . . . . . . Garrison Access . | . . . . . . . . . . . . . . . . . . Terminal Hacks 33 | . 1 . 23 . . 1 1 . . . . 7 . . . . . Record 24 | . . . 23 . . . 1 . . . . . . . . . . Open Door 7 | . . . . . . . . . . . . 7 . . . . . Branch Access Points 2 | . 1 . . . . 1 . . . . . . . . . . . Fabricator Hacks . | . . . . . . . . . . . . . . . . . . Repair Station Hacks . | . . . . . . . . . . . . . . . . . . Recycling Unit Hacks . | . . . . . . . . . . . . . . . . . . Scanalyzer . | . . . . . . . . . . . . . . . . . . Garrison Access Hacks . | . . . . . . . . . . . . . . . . . . Unauthorized Hacks 1 | . . . . . . 1 . . . . . . . . . . . Terminals 1 | . . . . . . 1 . . . . . . . . . . . Assimilate 1 | . . . . . . 1 . . . . . . . . . . . Fabricators . | . . . . . . . . . . . . . . . . . . Repair Stations . | . . . . . . . . . . . . . . . . . . Recycling Units . | . . . . . . . . . . . . . . . . . . Scanalyzers . | . . . . . . . . . . . . . . . . . . Garrison Access . | . . . . . . . . . . . . . . . . . . Data Cores Recovered . | . . . . . . . . . . . . . . . . . . Used . | . . . . . . . . . . . . . . . . . . Hacking Detections 11 | . 1 . . . 2 3 . . . . . 3 2 . . . . Full Trace Events 4 | . . . . . 2 . . . . . . 2 . . . . . Feedback Events . | . . . . . . . . . . . . . . . . . . Feedback Blocked . | . . . . . . . . . . . . . . . . . . Robot Schematics Acquired 3 | . . . . . . . . . 3 . . . . . . . . Robots Built . | . . . . . . . . . . . . . . . . . . Authchips . | . . . . . . . . . . . . . . . . . . Time . | . . . . . . . . . . . . . . . . . . Total Robot Build Rating . | . . . . . . . . . . . . . . . . . . Part Schematics Acquired 14 | . . . . . . . . . 14 . . . . . . . . Parts Built . | . . . . . . . . . . . . . . . . . . Authchips . | . . . . . . . . . . . . . . . . . . Time . | . . . . . . . . . . . . . . . . . . Total Part Build Rating . | . . . . . . . . . . . . . . . . . . Part Studies Acquired . | . . . . . . . . . . . . . . . . . . Parts Repaired . | . . . . . . . . . . . . . . . . . . Time . | . . . . . . . . . . . . . . . . . . Parts Recycled . | . . . . . . . . . . . . . . . . . . Recycled Matter . | . . . . . . . . . . . . . . . . . . Retrieved Matter . | . . . . . . . . . . . . . . . . . . Retrieved Components . | . . . . . . . . . . . . . . . . . . Parts Scanalyzed . | . . . . . . . . . . . . . . . . . . Part Schematics Acquired . | . . . . . . . . . . . . . . . . . . Parts Damaged . | . . . . . . . . . . . . . . . . . . Bothacking | -11 -10 -10 -10 -9 -8 -7 -7 -7 -7 -6 -6 -6 -6 -5 -4 -4 -4 ------------ Run | Yrd Mat Min Exi Min Mat Fac Low Low Zio Pro Fac Ext Cet Fac Fac Upp Upp Used RIF Installer . | . . . . . . . . . . . . . . . . . . Robots Hacked . | . . . . . . . . . . . . . . . . . . Non-combat . | . . . . . . . . . . . . . . . . . . Combat . | . . . . . . . . . . . . . . . . . . Robot Hacks Applied . | . . . . . . . . . . . . . . . . . . Relay Couplers Released 4 | . . . . . . . . . . . . . . . 4 . . Programmers 4 | . . . . . . . . . . . . . . . 4 . . Fabnet Peak Effective % . | . . . . . . . . . . . . . . . . . . Robots Rewired 6 | . . . . . . . . . . . . 6 . . . . . Allies Hacked 1 | . . . . . . . . . . . . . . 1 . . . Hacks Repelled . | . . . . . . . . . . . . . . . . . . Allies | -11 -10 -10 -10 -9 -8 -7 -7 -7 -7 -6 -6 -6 -6 -5 -4 -4 -4 -------- Run | Yrd Mat Min Exi Min Mat Fac Low Low Zio Pro Fac Ext Cet Fac Fac Upp Upp Total Allies 37 | . . 2 . 3 . . . . 4 . 5 16 5 1 1 . . Largest Group 6 | . . 2 2 3 3 2 . . 4 4 5 6 6 3 2 . . Highest-Rated Group 639 | . . 42 42 40 40 24 . . 159 159 380 266 639 281 55 . . Highest-Rated Ally 159 | . . 31 31 16 16 16 . . 40 40 85 159 159 96 28 . . Zionite Dispatches 7 | . . . . . . . . . . . 2 3 . 1 1 . . Heavy 1 | . . . . . . . . . . . 1 . . . . . . Light 1 | . . . . . . . . . . . 1 . . . . . . Recon 2 | . . . . . . . . . . . . 2 . . . . . Thermal Resupply 1 | . . . . . . . . . . . . . . 1 . . . Offense Resupply 1 | . . . . . . . . . . . . . . . 1 . . Defense Resupply 1 | . . . . . . . . . . . . 1 . . . . . Total Orders 12 | . . . . . . . . . . . . 1 2 1 8 . . STAY 2 | . . . . . . . . . . . . . 1 . 1 . . ROAM 3 | . . . . . . . . . . . . . . . 3 . . FOLLOW 1 | . . . . . . . . . . . . . 1 . . . . DROP 3 | . . . . . . . . . . . . 1 . 1 1 . . EXPLORE 2 | . . . . . . . . . . . . . . . 2 . . RETURN 1 | . . . . . . . . . . . . . . . 1 . . Ally Attacks 294 | . . 5 . . 34 3 . . . 39 56 107 32 18 . . . Total Damage 6695 | . . 65 . . 366 35 . . . 1040 1835 2026 909 419 . . . Kills 52 | . . 2 . . 3 . . . . 9 16 11 7 4 . . . Allies Corrupted 2 | . . . . . . . . . . . . 2 . . . . . Allies Melted . | . . . . . . . . . . . . . . . . . . Intel | -11 -10 -10 -10 -9 -8 -7 -7 -7 -7 -6 -6 -6 -6 -5 -4 -4 -4 ------- Run | Yrd Mat Min Exi Min Mat Fac Low Low Zio Pro Fac Ext Cet Fac Fac Upp Upp Active Infowar (turns) 5944 | 14 65 973 259 131 365 1165 . . . . 1265 528 . . 1162 17 . Optics 1530 | . . . . . 365 1165 . . . . . . . . . . . Sensors 2140 | . . . . . . . . . . . 1265 491 . . 384 . . Structural 634 | . . . . . . . . . . . . . . . 617 17 . Seismic 1442 | 14 65 973 259 131 . . . . . . . . . . . . . Triangulation 37 | . . . . . . . . . . . . 37 . . . . . Jamming 862 | . . . . . . . . . . . . . . . 862 . . Robot Analysis Total . | . . . . . . . . . . . . . . . . . . Derelict Logs Recovered 9 | . . 1 . . . . 1 2 2 2 . . . . . 1 . Drone Launches 4 | . . . . . . . . . . . . . . . 4 . . Drone Recoveries 3 | . . . . . . . . . . . . . . . 3 . . Zionite Intel Received 6 | . . . . . . . . . . . 1 3 . 2 . . . Emergency Access 1 | . . . . . . . . . . . . . . 1 . . . Unaware Analyses 3 | . . . . . . . . . . . 1 1 . 1 . . . Active Terminals 1 | . . . . . . . . . . . . 1 . . . . . Depthwide Sectors/0 1 | . . . . . . . . . . . . 1 . . . . . Exploration | -11 -10 -10 -10 -9 -8 -7 -7 -7 -7 -6 -6 -6 -6 -5 -4 -4 -4 ------------- Run | Yrd Mat Min Exi Min Mat Fac Low Low Zio Pro Fac Ext Cet Fac Fac Upp Upp Turns Passed 16578 | 299 65 973 259 272 460 1468 1074 1078 3190 933 1627 1596 848 412 1420 394 210 Spaces Moved 7404 | 153 32 547 161 137 159 604 506 354 999 373 737 648 294 153 519 620 408 Core 40 | 4 . . . 1 . . . . . . 2 . . . . 7 26 Treads 4856 | 149 32 547 161 136 159 604 506 264 999 373 597 . . 44 285 . . Legs 1367 | . . . . . . . . 90 . . 138 648 294 109 79 9 . Wheels 159 | . . . . . . . . . . . . . . . 155 . 4 Hover . | . . . . . . . . . . . . . . . . . . Flight 982 | . . . . . . . . . . . . . . . . 604 378 Fastest Speed 35 | 50 160 160 160 160 160 156 156 232 250 160 160 190 190 190 116 35 35 Average Speed 186 | 157 160 160 160 162 224 183 189 281 313 218 172 190 191 213 193 40 37 Slowest Speed 1100 | 160 160 160 160 450 240 240 385 410 320 250 1100 190 260 330 260 550 150 Overloaded Moves . | . . . . . . . . . . . . . . . . . . Propulsion Burnouts . | . . . . . . . . . . . . . . . . . . Robots Hopped . | . . . . . . . . . . . . . . . . . . Potential Cave-ins 12 | . . . . . . . . . . . 2 10 . . . . . Cave-ins Triggered 2 | . . . . . . . . 1 . . 1 . . . . . . Exploration Rate (%) 42 | 5 13 71 50 30 17 22 66 51 90 51 24 58 77 7 20 78 43 Regions Visited 17 Branch Regions 11 Pre-discovered Areas 12 | . . 1 1 . . . . . . . . 10 . . . . . Known Exits Taken 5 | . 1 . . . . 1 1 . . 1 1 . . . . . . Unknown Exits Taken 12 | 1 . 1 1 1 1 . . 1 1 . . 1 1 1 1 1 . Scrap Searched 13 | . . 3 . . . . 4 1 . 1 . . . . . 2 2 Spaces Dug 205 | . . . . . . 4 . . . . 91 106 . 2 2 . . Terrain Destroyed 1054 | . . . . . 27 54 31 66 . 62 263 243 149 16 142 1 . Melee 18 | . . . . . . 1 . . . . 15 . . . 2 . . Projectile 15 | . . . . . . . . . . 1 . 1 1 3 8 1 . AOE 1021 | . . . . . 27 53 31 66 . 61 248 242 148 13 132 . . Terrain Rammed . | . . . . . . . . . . . . . . . . . . Walls Destroyed . | . . . . . . . . . . . . . . . . . . Machines Disabled . | . . . . . . . . . . . . . . . . . . Actions | -11 -10 -10 -10 -9 -8 -7 -7 -7 -7 -6 -6 -6 -6 -5 -4 -4 -4 --------- Run | Yrd Mat Min Exi Min Mat Fac Low Low Zio Pro Fac Ext Cet Fac Fac Upp Upp Total 9218 | 179 36 591 163 165 228 875 563 414 1046 423 943 922 520 200 775 725 450 Wait 703 | . . 6 . 7 16 143 10 26 25 9 56 122 135 5 61 59 23 Move 7386 | 152 31 546 160 136 158 603 505 353 998 372 735 647 293 152 518 619 408 Hop . | . . . . . . . . . . . . . . . . . . Pick Up 103 | 2 . 5 1 3 11 17 2 3 4 1 15 16 2 7 8 6 . Fast Attach 120 | 8 . . . 3 5 9 2 4 3 6 12 8 18 4 26 8 4 Attach 83 | . . . . 2 4 2 2 11 . 1 10 3 11 8 23 1 5 Detach 22 | . . . . . . . . 1 2 . . . 6 1 7 4 1 Swap 123 | . . 3 1 2 7 19 5 2 14 1 22 18 7 2 19 1 . Drop 124 | 1 . 1 1 . 8 27 3 1 . 2 16 19 14 1 22 7 1 Fire 426 | 14 5 29 . 12 19 52 34 13 . 31 53 46 17 20 59 17 5 Melee 84 | . . . . . . 3 . . . . 23 4 17 . 31 3 3 Ram . | . . . . . . . . . . . . . . . . . . Kick . | . . . . . . . . . . . . . . . . . . Crush 3 | 2 . 1 . . . . . . . . . . . . . . . Escape Stasis 21 | . . . . . . . . . . . 1 20 . . . . . Rewire 20 | . . . . . . . . . . . . 19 . . 1 . . Trap . | . . . . . . . . . . . . . . . . . . Miscellaneous . | . . . . . . . . . . . . . . . . . . Route ------- -11/Scrapyard -10/Materials -10/Mines -10/Exiles -9/Mines -8/Materials -7/Factory (discovered 2 exits: *Low x2) -7/Lower Caves -7/Lower Caves (discovered 2 exits: *Fac / [*Zio]) -7/Zion -6/Proximity Caves -6/Factory (discovered 3 exits: *Fac / Low / *Ext) -6/Extension (discovered 2 exits: *Fac / *Cet) -6/Cetus (discovered 2 exits: *Fac / [*Arc]) -5/Factory -4/Factory -4/Upper Caves -4/Upper Caves (discovered 1 exit: [*Res]) History --------- Turn | Location | Event 7 | -11/Scrapyard | Discovered new exit (range 14) 300 | -11/Scrapyard | Entered Materials 307 | -10/Materials | Build established: Mutant 334 | -10/Materials | Identified exit to Mines 365 | -10/Materials | Entered Mines 366 | -10/Mines | Met a Derelict bent on vengeance 440 | -10/Mines | Learned 2 Materials zone layouts 766 | -10/Mines | Build established: Scavenger-Mutant 1278 | -10/Mines | Learned location of Storage (-8) 1328 | -10/Mines | Deemed a non-threat by the Exiles lab entrance 1330 | -10/Mines | Discovered new exit (range 5) 1338 | -10/Mines | Entered Exiles 1338 | -10/Exiles | Accompanied by 2 allies 1368 | -10/Exiles | Led the pair of lost Derelicts to a safe place 1377 | -10/Exiles | Met 8R-AWN 1406 | -10/Exiles | Met EX-HEX 1473 | -10/Exiles | Met EX-DEC 1481 | -10/Exiles | Learned location of Zion (-7) 1576 | -10/Exiles | Discovered new exit (range 14) 1597 | -10/Exiles | Entered Mines 1728 | -9/Mines | Core integrity fell below 50% 1764 | -9/Mines | Lost 5 parts (1p2n1u1w) 1845 | -9/Mines | Discovered new exit (range 3) 1854 | -9/Mines | Assisted by bots powering up and referring to "LRC-V3" 1869 | -9/Mines | Entered Materials 1869 | -8/Materials | Accompanied by 3 allies 1869 | -8/Materials | Evolved 4 slots: Propulsion x1, Utility x2, Weapon x1 2084 | -8/Materials | Discovered new exit (range 16) 2329 | -8/Materials | Entered Factory 2329 | -7/Factory | Accompanied by 2 allies 2329 | -7/Factory | Evolved 2 slots: Propulsion x1, Weapon x1 2389 | -7/Factory | Build established: Tank 2780 | -7/Factory | Build established: Scavenger-Tank 2911 | -7/Factory | Found Prototype Launcher 2911 | -7/Factory | Identified Rocket Array 2917 | -7/Factory | Found Rocket Array 2926 | -7/Factory | Found Rocket Array 2966 | -7/Factory | Identified exit to Lower Caves 3129 | -7/Factory | First assault squad dispatched 3784 | -7/Factory | Build established: Gunner 3797 | -7/Factory | Entered Lower Caves 4416 | -7/Lower Caves | Learned 8 Factory zone layouts 4579 | -7/Lower Caves | Build established: Scavenger-Gunner 4675 | -7/Lower Caves | Entered a destroyed Warlord outpost 4851 | -7/Lower Caves | Discovered new exit (range 7) 4870 | -7/Lower Caves | Identified exit to Lower Caves 4871 | -7/Lower Caves | Entered another Lower Caves area 4939 | -7/Lower Caves | Discovered new exit (range 16) 4972 | -7/Lower Caves | Identified exit to Factory 5167 | -7/Lower Caves | Build established: Tank 5355 | -7/Lower Caves | Spotted B-75 Beast 5436 | -7/Lower Caves | Destroyed B-75 Beast 5464 | -7/Lower Caves | Lost 10 parts (1p1n1u7w) 5526 | -7/Lower Caves | Crushed by falling debris 5526 | -7/Lower Caves | Core integrity fell below 50% 5752 | -7/Lower Caves | Learned 4 Factory zone layouts 5773 | -7/Lower Caves | Learned Factory terminal intel 5927 | -7/Lower Caves | Discovered new exit (range 7) 5949 | -7/Lower Caves | Entered Zion 6077 | -7/Zion | System corruption cleaned by Quarantine Array 6695 | -7/Zion | Learned Factory emergency access door positions 7328 | -7/Zion | Found GAL Module 7367 | -7/Zion | Build established: Mutant 7661 | -7/Zion | Met Imprinter 7716 | -7/Zion | Imprinted 7719 | -7/Zion | Declared Zion's savior 9043 | -7/Zion | Visited the Megawrench Repair Shop 9043 | -7/Zion | Megawrench repaired 10 parts 9077 | -7/Zion | Discovered new exit (range 12) 9139 | -7/Zion | Entered Proximity Caves 9139 | -6/Proximity Caves | Accompanied by 4 allies 9146 | -6/Proximity Caves | Attracted the attention of an 0b10 checkpoint 9219 | -6/Proximity Caves | Build established: Scavenger-Tank 9519 | -6/Proximity Caves | Spotter reported a threat 9715 | -6/Proximity Caves | Learned Factory terminal intel 9763 | -6/Proximity Caves | Spotted B-75 Beast 9813 | -6/Proximity Caves | Lost 3 parts (2u1w) 9822 | -6/Proximity Caves | System corruption reached 10% 9888 | -6/Proximity Caves | Spotter reported a threat 9932 | -6/Proximity Caves | Spotter reported a threat 9985 | -6/Proximity Caves | Spotter reported a threat 9991 | -6/Proximity Caves | Spotter reported a threat 10072 | -6/Proximity Caves | Entered Factory 10072 | -6/Factory | Accompanied by 1 ally 10072 | -6/Factory | Evolved 2 slots: Propulsion x1, Utility x1 10073 | -6/Factory | Identified exit to Extension 10074 | -6/Factory | Identified exit to Lower Caves 10076 | -6/Factory | Loaded intel: 28 terminal locations 10257 | -6/Factory | Build established: Scavenger-Gunner 10258 | -6/Factory | Discovered new exit (range 7) 10348 | -6/Factory | Zion Heavy squad teleported in 10422 | -6/Factory | Search patrols dispatched 10427 | -6/Factory | Zion Light squad teleported in 10545 | -6/Factory | Retrieved Zion intel report: Unaware Analyses 10772 | -6/Factory | Search patrols dispatched 10898 | -6/Factory | Build established: Scavenger-Tank 11122 | -6/Factory | First assault squad dispatched 11246 | -6/Factory | Lost 3 parts (2n1w) 11366 | -6/Factory | Lost 5 parts (1p1n3w) 11460 | -6/Factory | Terminal network hard line cut 11583 | -6/Factory | Crushed by falling debris 11584 | -6/Factory | System corruption reached 10% 11699 | -6/Factory | Entered Extension 11730 | -6/Extension | Disrupted transfer network 11824 | -6/Extension | Rescued a captive Derelict 12109 | -6/Extension | Lost 3 parts (2n1w) 12186 | -6/Extension | Rescued a captive Derelict 12298 | -6/Extension | Rescued a captive Derelict 12321 | -6/Extension | Retrieved Zion intel report: Unaware Analyses 12332 | -6/Extension | Retrieved Zion intel report: Active Terminals 12333 | -6/Extension | Zion Defense Resupply teleported in 12743 | -6/Extension | Rescued a captive Derelict 12745 | -6/Extension | Rescued a captive Derelict 12766 | -6/Extension | Zion Recon squad teleported in 12848 | -6/Extension | Retrieved Zion intel report: Depthwide Sectors/-6 12849 | -6/Extension | Zion Recon squad teleported in 12889 | -6/Extension | Rescued a captive Derelict 12890 | -6/Extension | Rescued a captive Derelict 12898 | -6/Extension | Rescued a captive Derelict 13081 | -6/Extension | Rescued A7 13134 | -6/Extension | Lost 3 allies 13167 | -6/Extension | Terminal network hard line cut 13218 | -6/Extension | Discovered new exit (range 13) 13225 | -6/Extension | Discovered new exit (range 8) 13295 | -6/Extension | Entered Cetus 13295 | -6/Cetus | Accompanied by 2 allies (A7) 13300 | -6/Cetus | Acquired a Cetus Manufacturing Module code from A7 13321 | -6/Cetus | Spotted Cetus Guard 13321 | -6/Cetus | Spotted Cetus Guard 13325 | -6/Cetus | Spotted Cetus Guard 13331 | -6/Cetus | Allies destroyed Cetus Guard 13333 | -6/Cetus | Spotted Cetus Guard 13341 | -6/Cetus | Allies destroyed Cetus Guard 13352 | -6/Cetus | Allies destroyed Cetus Guard 13358 | -6/Cetus | Allies destroyed Cetus Guard 13377 | -6/Cetus | Lost 3 parts (1p2u) 13447 | -6/Cetus | Started Cetus Manufacturing Module 13472 | -6/Cetus | Manufactured an Enhanced Grunt 13497 | -6/Cetus | Manufactured an Enhanced Grunt 13522 | -6/Cetus | Manufactured an Enhanced Grunt 13547 | -6/Cetus | Manufactured an Enhanced Grunt 13572 | -6/Cetus | Manufactured an Enhanced Grunt 13774 | -6/Cetus | Discovered new exit (range 16) 13810 | -6/Cetus | Spotted Cetus Guard 13810 | -6/Cetus | Spotted Cetus Guard 13815 | -6/Cetus | Spotted Cetus Guard 13815 | -6/Cetus | Spotted Cetus Guard 13820 | -6/Cetus | Allies destroyed Cetus Guard 13827 | -6/Cetus | Destroyed Cetus Guard 13828 | -6/Cetus | Destroyed Cetus Guard 13830 | -6/Cetus | Allies destroyed Cetus Guard 13842 | -6/Cetus | Discovered new exit (range 16) 13854 | -6/Cetus | Scared off Revision 17 13859 | -6/Cetus | Lost 3 parts (1p1n1w) 14044 | -6/Cetus | Murdered A7 14045 | -6/Cetus | Security sweep announced 14047 | -6/Cetus | Extracted ID and sensor layout for unrecognized location from A7's data core 14089 | -6/Cetus | System corruption reached 30% 14143 | -6/Cetus | Entered Factory 14143 | -5/Factory | Accompanied by 3 allies 14143 | -5/Factory | Evolved 2 slots: Power x1, Utility x1 14144 | -5/Factory | Loaded intel: 26 terminal locations 14193 | -5/Factory | Allied Derelicts emerged from ambush trap array 14212 | -5/Factory | Retrieved Zion intel report: Unaware Analyses 14320 | -5/Factory | Assembled infested ambush trap array 14364 | -5/Factory | Lost 6 allies 14372 | -5/Factory | Discovered new exit (range 14) 14378 | -5/Factory | Lost 6 parts (1p2n2u1w) 14421 | -5/Factory | Lost 3 parts (2n1w) 14441 | -5/Factory | Retrieved Zion intel report: Emergency Access 14442 | -5/Factory | Zion Thermal Resupply teleported in 14493 | -5/Factory | Lost 3 parts (3n) 14555 | -5/Factory | Entered another Factory area 14555 | -4/Factory | Accompanied by 1 ally 14555 | -4/Factory | Evolved 2 slots: Propulsion x2 14600 | -4/Factory | Zion Offense Resupply teleported in 15068 | -4/Factory | Spotted B-86 Titan 15140 | -4/Factory | Lost 3 parts (2u1w) 15551 | -4/Factory | Lost 5 parts (2u3w) 15658 | -4/Factory | Lost 5 parts (1p3n1w) 15692 | -4/Factory | Discovered new exit (range 38) 15827 | -4/Factory | Destroyed 9 combat bots 15827 | -4/Factory | Lost 8 parts (4n1u3w) 15881 | -4/Factory | Terminal network hard line cut 15902 | -4/Factory | Core integrity fell below 50% 15906 | -4/Factory | Cargo convoy interrupted 15935 | -4/Factory | Lost 4 parts (1p1n1u1w) 15975 | -4/Factory | Entered Upper Caves 16045 | -4/Upper Caves | Lost 8 parts (1p4n1u2w) 16104 | -4/Upper Caves | Lost 4 parts (1p3w) 16190 | -4/Upper Caves | Spotted B-86 Titan 16242 | -4/Upper Caves | Learned Research stockpile data 16365 | -4/Upper Caves | Discovered new exit (range 14) 16369 | -4/Upper Caves | Entered another Upper Caves area 16369 | -4/Upper Caves | Discovered new exit (range 9) 16375 | -4/Upper Caves | Build established: Mutant 16422 | -4/Upper Caves | Encountered a Warlord checkpoint 16530 | -4/Upper Caves | System corruption reached 10% 16551 | -4/Upper Caves | Core integrity fell below 20% 16579 | -4/Upper Caves | Self-destructed Last Messages --------------- 16541_ Adv. Heat Sink destroyed. 16541_ Adv. Targeting Computer destroyed. 16545_ P-70 Sage resets P-70 Sage, system corruption cleaned. 16547_ Wheel destroyed. 16548_ System corrupted: Lgt. Nuclear Core rejected. 16553_ Acquired 30 matter. 16565_ OE/